[Event "*** Titled Tuesday Blitz"]
[Site "Chess.com"]
[Date "2021.04.20"]
[Round "6"]
[White "Shahaliyev"]
[Black "Problematique_99"]
[Result "1-0"]
[WhiteElo "2672"]
[BlackElo "2498"]
[TimeControl "180+1"]
[EndTime "11:02:53 PDT"]
[Termination "Shahaliyev won by resignation"]

1. e4 {[%clk 0:03:00.9]} 1... c5 {[%clk 0:02:58.1]} 2. Nf3 {[%clk 0:03:01.2]}
2... e6 {[%clk 0:02:55.7]} 3. c3 {[%clk 0:02:59.2]} 3... d5 {[%clk 0:02:50.5]}
4. exd5 {[%clk 0:03:00.1]} 4... exd5 {[%clk 0:02:49.6]} 5. d4 {[%clk 0:03:00.1]}
5... Nc6 {[%clk 0:02:48.4]} 6. Bd3 {[%clk 0:02:59.6]} 6... cxd4 {[%clk 0:02:43]}
7. cxd4 {[%clk 0:02:58]} 7... Bd6 {[%clk 0:02:41.9]} 8. h3 {[%clk 0:02:57]} 8...
Nge7 {[%clk 0:02:39.5]} 9. O-O {[%clk 0:02:55.2]} 9... O-O {[%clk 0:02:39.4]}
10. Nc3 {[%clk 0:02:55.7]} 10... a6 {[%clk 0:02:31.8]} 11. Bg5 {[%clk 0:02:46]}
11... f6 {[%clk 0:02:31]} 12. Bd2 {[%clk 0:02:44.8]} 12... Bf5 {[%clk
0:02:19.7]} 13. Bxf5 {[%clk 0:02:36.5]} 13... Nxf5 {[%clk 0:02:19.1]} 14. Qb3
{[%clk 0:02:37.4]} 14... Nfe7 {[%clk 0:02:13.7]} 15. Nxd5 {[%clk 0:02:31.5]}
15... Nxd5 {[%clk 0:02:11.3]} 16. Qxd5+ {[%clk 0:02:32.4]} 16... Kh8 {[%clk
0:02:11.8]} 17. Qb3 {[%clk 0:02:31.5]} 17... Qd7 {[%clk 0:02:05.3]} 18. Rfe1
{[%clk 0:02:26.1]} 18... Rad8 {[%clk 0:02:02]} 19. Rac1 {[%clk 0:02:22.2]} 19...
Bb8 {[%clk 0:02:01.1]} 20. Be3 {[%clk 0:02:12.2]} 20... Rfe8 {[%clk 0:01:53.3]}
21. Red1 {[%clk 0:02:08.4]} 21... Qd5 {[%clk 0:01:50.1]} 22. Qxd5 {[%clk
0:02:03.2]} 22... Rxd5 {[%clk 0:01:49.3]} 23. Rc5 {[%clk 0:02:03.6]} 23... Red8
{[%clk 0:01:48]} 24. Rdc1 {[%clk 0:02:03.1]} 24... Ba7 {[%clk 0:01:47.5]} 25.
Rxd5 {[%clk 0:01:58.2]} 25... Rxd5 {[%clk 0:01:46.9]} 26. Rc4 {[%clk 0:01:58.7]}
26... Kg8 {[%clk 0:01:43.3]} 27. a4 {[%clk 0:01:57]} 27... Kf7 {[%clk
0:01:42.1]} 28. Kf1 {[%clk 0:01:51.7]} 28... Ke6 {[%clk 0:01:41.6]} 29. Ke2
{[%clk 0:01:49.4]} 29... Kd7 {[%clk 0:01:41.6]} 30. h4 {[%clk 0:01:40.7]} 30...
b5 {[%clk 0:01:39.6]} 31. axb5 {[%clk 0:01:41.6]} 31... axb5 {[%clk 0:01:40.3]}
32. Rc1 {[%clk 0:01:41.5]} 32... Nxd4+ {[%clk 0:01:39.6]} 33. Bxd4 {[%clk
0:01:41]} 33... Bxd4 {[%clk 0:01:40.5]} 34. Rd1 {[%clk 0:01:41.1]} 1-0

[Event "*** Titled Tuesday Blitz"]
[Site "Chess.com"]
[Date "2021.04.20"]
[Round "6"]
[White "Indianlad"]
[Black "VMikhalevski"]
[Result "1-0"]
[WhiteElo "2921"]
[BlackElo "2706"]
[TimeControl "180+1"]
[EndTime "11:03:03 PDT"]
[Termination "Indianlad won by resignation"]

1. c4 {[%clk 0:02:58.7]} 1... Nf6 {[%clk 0:02:55.9]} 2. Nc3 {[%clk 0:02:58.3]}
2... d5 {[%clk 0:02:56.6]} 3. cxd5 {[%clk 0:02:58.1]} 3... Nxd5 {[%clk
0:02:57.2]} 4. e4 {[%clk 0:02:58.4]} 4... Nxc3 {[%clk 0:02:56.5]} 5. dxc3 {[%clk
0:02:58]} 5... Qxd1+ {[%clk 0:02:55.5]} 6. Kxd1 {[%clk 0:02:58.9]} 6... e5
{[%clk 0:02:55.3]} 7. Be3 {[%clk 0:02:57.1]} 7... Be6 {[%clk 0:02:53.8]} 8. f3
{[%clk 0:02:56.2]} 8... Nd7 {[%clk 0:02:53]} 9. Kc2 {[%clk 0:02:55.2]} 9... a5
{[%clk 0:02:51.6]} 10. Nh3 {[%clk 0:02:12.8]} 10... f6 {[%clk 0:02:50.9]} 11.
Nf2 {[%clk 0:02:12.3]} 11... Bc5 {[%clk 0:02:50.6]} 12. Bxc5 {[%clk 0:02:11.8]}
12... Nxc5 {[%clk 0:02:50.6]} 13. Be2 {[%clk 0:02:09.1]} 13... Ke7 {[%clk
0:02:48]} 14. Nd1 {[%clk 0:02:01.7]} 14... Rhd8 {[%clk 0:02:41.5]} 15. Ne3
{[%clk 0:02:01.9]} 15... Rd7 {[%clk 0:02:35.6]} 16. Rhd1 {[%clk 0:01:59.1]}
16... Rad8 {[%clk 0:02:35]} 17. Rxd7+ {[%clk 0:01:58.6]} 17... Rxd7 {[%clk
0:02:35.1]} 18. b4 {[%clk 0:01:54.9]} 18... axb4 {[%clk 0:02:30.6]} 19. cxb4
{[%clk 0:01:55.8]} 19... Na4 {[%clk 0:02:29.3]} 20. Bb5 {[%clk 0:01:55.8]} 20...
Nb6 {[%clk 0:02:18.5]} 21. Bxd7 {[%clk 0:01:55.5]} 21... Kxd7 {[%clk 0:02:18.4]}
22. a4 {[%clk 0:01:55.1]} 22... Nc8 {[%clk 0:02:14.1]} 23. b5 {[%clk 0:01:53.5]}
23... b6 {[%clk 0:02:13.5]} 24. Kc3 {[%clk 0:01:53.3]} 24... Nd6 {[%clk
0:02:13]} 25. Rd1 {[%clk 0:01:53.7]} 25... Kc8 {[%clk 0:02:05.3]} 26. Nd5 {[%clk
0:01:52.2]} 26... Kb7 {[%clk 0:02:03.8]} 27. Kb4 {[%clk 0:01:51.2]} 27... Nc8
{[%clk 0:01:58.3]} 28. Rc1 {[%clk 0:01:48.5]} 28... Bxd5 {[%clk 0:01:55.3]} 29.
exd5 {[%clk 0:01:49.4]} 29... Ne7 {[%clk 0:01:55.5]} 30. Rd1 {[%clk 0:01:48.5]}
30... Nf5 {[%clk 0:01:55.4]} 31. g4 {[%clk 0:01:47]} 31... Nd6 {[%clk
0:01:54.1]} 32. h4 {[%clk 0:01:46.1]} 32... Kc8 {[%clk 0:01:44.2]} 33. Rc1
{[%clk 0:01:45.4]} 33... Kd7 {[%clk 0:01:43.8]} 34. a5 {[%clk 0:01:44.7]} 34...
bxa5+ {[%clk 0:01:41.3]} 35. Kxa5 {[%clk 0:01:45.6]} 35... Nc8 {[%clk 0:01:41]}
36. Ka6 {[%clk 0:01:44.2]} 36... Nb6 {[%clk 0:01:40.8]} 37. Kb7 {[%clk 0:01:41]}
37... Nxd5 {[%clk 0:01:39.7]} 38. Rd1 {[%clk 0:01:38.8]} 38... Ke6 {[%clk
0:01:36.6]} 39. Rxd5 {[%clk 0:01:32.6]} 39... Kxd5 {[%clk 0:01:36.2]} 40. Kxc7
{[%clk 0:01:33.2]} 1-0

[Event "*** Titled Tuesday Blitz"]
[Site "Chess.com"]
[Date "2021.04.20"]
[Round "6"]
[White "Sjakkerntobi"]
[Black "PawnEatingZombie"]
[Result "1-0"]
[WhiteElo "2393"]
[BlackElo "2188"]
[TimeControl "180+1"]
[EndTime "11:03:15 PDT"]
[Termination "Sjakkerntobi won by resignation"]

1. e4 {[%clk 0:03:00.9]} 1... c6 {[%clk 0:02:59.6]} 2. Nc3 {[%clk 0:03:00.5]}
2... d5 {[%clk 0:03:00.5]} 3. Nf3 {[%clk 0:03:01.1]} 3... Bg4 {[%clk 0:03:00.3]}
4. h3 {[%clk 0:03:00.4]} 4... Bh5 {[%clk 0:03:00.8]} 5. exd5 {[%clk 0:02:59.9]}
5... cxd5 {[%clk 0:03:01.7]} 6. g4 {[%clk 0:02:57.5]} 6... Bg6 {[%clk
0:03:01.7]} 7. Bb5+ {[%clk 0:02:55.7]} 7... Nc6 {[%clk 0:03:02]} 8. Ne5 {[%clk
0:02:56.4]} 8... Rc8 {[%clk 0:03:01.9]} 9. d4 {[%clk 0:02:55]} 9... e6 {[%clk
0:03:01.6]} 10. Qe2 {[%clk 0:02:54.7]} 10... Bb4 {[%clk 0:03:00.7]} 11. h4
{[%clk 0:02:51.8]} 11... Ne7 {[%clk 0:02:35]} 12. h5 {[%clk 0:02:49.1]} 12...
Be4 {[%clk 0:02:34.5]} 13. f3 {[%clk 0:02:48]} 13... a6 {[%clk 0:02:28]} 14.
Bxc6+ {[%clk 0:02:45.8]} 14... Nxc6 {[%clk 0:02:27.3]} 15. Nxc6 {[%clk
0:02:45.7]} 15... Rxc6 {[%clk 0:02:26.7]} 16. fxe4 {[%clk 0:02:42.9]} 16... Rxc3
{[%clk 0:02:23.8]} 17. bxc3 {[%clk 0:02:28.4]} 17... Bxc3+ {[%clk 0:02:02.9]}
18. Bd2 {[%clk 0:02:28.2]} 18... Bxa1 {[%clk 0:02:00.5]} 19. c3 {[%clk
0:02:28.5]} 19... Qa5 {[%clk 0:01:46]} 20. Qe3 {[%clk 0:02:18.4]} 20... O-O
{[%clk 0:01:38.1]} 21. O-O {[%clk 0:02:15.4]} 21... Qxa2 {[%clk 0:01:37.9]} 22.
h6 {[%clk 0:02:10.8]} 22... g6 {[%clk 0:01:31]} 23. Qg5 {[%clk 0:02:08.5]} 23...
f6 {[%clk 0:01:15.6]} 24. Rxf6 {[%clk 0:02:05.4]} 24... Qa3 {[%clk 0:00:16]} 25.
Rxg6+ {[%clk 0:02:01.8]} 25... Kh8 {[%clk 0:00:13.6]} 26. Rg8+ {[%clk
0:02:01.8]} 26... Rxg8 {[%clk 0:00:12.8]} 27. Qf6+ {[%clk 0:02:02.7]} 1-0

[Event "*** Titled Tuesday Blitz"]
[Site "Chess.com"]
[Date "2021.04.20"]
[Round "6"]
[White "Kretov_Evgenij"]
[Black "platy3"]
[Result "1/2-1/2"]
[WhiteElo "2667"]
[BlackElo "2839"]
[TimeControl "180+1"]
[EndTime "11:03:17 PDT"]
[Termination "Game drawn by agreement"]

1. d4 {[%clk 0:03:00.9]} 1... Nf6 {[%clk 0:02:59.7]} 2. c4 {[%clk 0:03:01.2]}
2... e6 {[%clk 0:02:59.8]} 3. Nc3 {[%clk 0:03:01.5]} 3... Bb4 {[%clk 0:02:59.5]}
4. Bg5 {[%clk 0:03:01.6]} 4... h6 {[%clk 0:02:58.5]} 5. Bh4 {[%clk 0:03:01.8]}
5... b6 {[%clk 0:02:58.5]} 6. e3 {[%clk 0:02:58.4]} 6... Bb7 {[%clk 0:02:58.4]}
7. Nf3 {[%clk 0:02:57.5]} 7... g5 {[%clk 0:02:57]} 8. Bg3 {[%clk 0:02:57.1]}
8... Ne4 {[%clk 0:02:57.6]} 9. Qc2 {[%clk 0:02:54.3]} 9... Bxc3+ {[%clk
0:02:54.7]} 10. bxc3 {[%clk 0:02:54]} 10... d6 {[%clk 0:02:55.4]} 11. Bd3 {[%clk
0:02:52.9]} 11... f5 {[%clk 0:02:55.2]} 12. O-O {[%clk 0:02:49.3]} 12... Nd7
{[%clk 0:02:49.5]} 13. Nd2 {[%clk 0:02:46.5]} 13... Nxd2 {[%clk 0:02:31.7]} 14.
Qxd2 {[%clk 0:02:46.1]} 14... h5 {[%clk 0:02:32.5]} 15. h3 {[%clk 0:02:20]}
15... h4 {[%clk 0:02:21.7]} 16. Bh2 {[%clk 0:02:19.8]} 16... Qf6 {[%clk
0:02:12.1]} 17. f3 {[%clk 0:02:18.5]} 17... Rg8 {[%clk 0:02:02.9]} 18. e4 {[%clk
0:02:15.8]} 18... f4 {[%clk 0:01:56.9]} 19. Kh1 {[%clk 0:02:13.2]} 19... e5
{[%clk 0:01:53.4]} 20. Bg1 {[%clk 0:02:12.9]} 20... c5 {[%clk 0:01:46.4]} 21. a4
{[%clk 0:02:05.3]} 21... a5 {[%clk 0:01:39.7]} 22. d5 {[%clk 0:01:56.1]} 22...
Kd8 {[%clk 0:01:25.6]} 23. Bh2 {[%clk 0:01:50.6]} 23... Ba6 {[%clk 0:01:25.8]}
24. Kg1 {[%clk 0:01:50.1]} 24... Kc7 {[%clk 0:01:26.1]} 25. Kf2 {[%clk
0:01:50.2]} 25... Qg6 {[%clk 0:01:25.6]} 26. Qe2 {[%clk 0:01:47.9]} 26... Nf6
{[%clk 0:01:24.4]} 27. Ke1 {[%clk 0:01:47.7]} 27... Rh8 {[%clk 0:01:23.1]} 28.
Kd2 {[%clk 0:01:46.2]} 28... Rag8 {[%clk 0:01:17.8]} 29. Rab1 {[%clk 0:01:42]}
29... Qe8 {[%clk 0:01:16.3]} 30. Ra1 {[%clk 0:01:41.8]} 30... Nh5 {[%clk
0:01:05]} 31. Rfb1 {[%clk 0:01:40.9]} 31... Nf6 {[%clk 0:00:58.5]} 32. Bg1
{[%clk 0:01:39.6]} 32... Nd7 {[%clk 0:00:57]} 33. Rb2 {[%clk 0:01:38.1]} 1/2-1/2

[Event "*** Titled Tuesday Blitz"]
[Site "Chess.com"]
[Date "2021.04.20"]
[Round "6"]
[White "CraiggoryC"]
[Black "kidagent"]
[Result "0-1"]
[WhiteElo "2195"]
[BlackElo "2340"]
[TimeControl "180+1"]
[EndTime "11:03:34 PDT"]
[Termination "kidagent won by resignation"]

1. e4 {[%clk 0:03:00.9]} 1... c5 {[%clk 0:02:59.8]} 2. Nf3 {[%clk 0:03:00]} 2...
d6 {[%clk 0:03:00.3]} 3. d4 {[%clk 0:03:00.6]} 3... cxd4 {[%clk 0:03:01.2]} 4.
Nxd4 {[%clk 0:03:01.1]} 4... Nf6 {[%clk 0:03:01.6]} 5. Nc3 {[%clk 0:03:01.7]}
5... a6 {[%clk 0:03:02.1]} 6. Bc4 {[%clk 0:03:02.2]} 6... e5 {[%clk 0:03:01.2]}
7. Nf5 {[%clk 0:02:55.8]} 7... g6 {[%clk 0:03:00.8]} 8. Ne3 {[%clk 0:02:52.4]}
8... Be6 {[%clk 0:03:00.3]} 9. Ned5 {[%clk 0:02:44.4]} 9... Nbd7 {[%clk
0:02:59.9]} 10. Bg5 {[%clk 0:02:39.6]} 10... h6 {[%clk 0:02:58.7]} 11. Nxf6+
{[%clk 0:02:27.4]} 11... Nxf6 {[%clk 0:02:57.9]} 12. Bxf6 {[%clk 0:02:27.3]}
12... Qxf6 {[%clk 0:02:57.6]} 13. Nd5 {[%clk 0:02:21.5]} 13... Qd8 {[%clk
0:02:53.3]} 14. Qf3 {[%clk 0:02:09.1]} 14... Bg7 {[%clk 0:02:50.4]} 15. O-O-O
{[%clk 0:02:00.3]} 15... O-O {[%clk 0:02:50.2]} 16. g4 {[%clk 0:01:46]} 16...
Qg5+ {[%clk 0:02:39.6]} 17. Kb1 {[%clk 0:01:39.8]} 17... Bxg4 {[%clk 0:02:37.8]}
18. Qa3 {[%clk 0:01:26.2]} 18... Bxd1 {[%clk 0:02:36.8]} 19. Rxd1 {[%clk
0:01:26.8]} 19... Rad8 {[%clk 0:02:29.1]} 20. Ne3 {[%clk 0:01:02.3]} 20... Qh4
{[%clk 0:02:19]} 21. f3 {[%clk 0:00:43.7]} 21... Qxh2 {[%clk 0:02:18.1]} 22. Qb4
{[%clk 0:00:34.9]} 22... b5 {[%clk 0:02:14.7]} 23. Bb3 {[%clk 0:00:33.4]} 23...
h5 {[%clk 0:02:11.4]} 24. a3 {[%clk 0:00:30.2]} 24... h4 {[%clk 0:02:10.7]} 25.
Rxd6 {[%clk 0:00:30.1]} 25... Qg1+ {[%clk 0:02:02.2]} 26. Nd1 {[%clk 0:00:21.7]}
26... Rxd6 {[%clk 0:02:02.1]} 27. Qxd6 {[%clk 0:00:21.3]} 27... h3 {[%clk
0:02:02.7]} 28. Ka2 {[%clk 0:00:16.3]} 28... h2 {[%clk 0:02:02.5]} 29. Nc3
{[%clk 0:00:11.9]} 29... h1=Q {[%clk 0:02:01.9]} 30. Bd5 {[%clk 0:00:09.8]}
30... Qxf3 {[%clk 0:01:56.1]} 0-1

[Event "*** Titled Tuesday Blitz"]
[Site "Chess.com"]
[Date "2021.04.20"]
[Round "6"]
[White "fabianvivasz"]
[Black "Susal_De_Silva"]
[Result "0-1"]
[WhiteElo "2345"]
[BlackElo "2583"]
[TimeControl "180+1"]
[EndTime "11:03:47 PDT"]
[Termination "Susal_De_Silva won on time"]

1. c4 {[%clk 0:03:00.9]} 1... e5 {[%clk 0:03:00]} 2. Nc3 {[%clk 0:02:59.1]} 2...
Nf6 {[%clk 0:03:00.3]} 3. Nf3 {[%clk 0:02:59.5]} 3... Nc6 {[%clk 0:03:00.4]} 4.
e4 {[%clk 0:03:00]} 4... Bb4 {[%clk 0:02:59.7]} 5. d3 {[%clk 0:03:00.1]} 5...
O-O {[%clk 0:02:59.1]} 6. a3 {[%clk 0:03:00.3]} 6... Bxc3+ {[%clk 0:02:59.4]} 7.
bxc3 {[%clk 0:03:01.2]} 7... d6 {[%clk 0:03:00.3]} 8. g3 {[%clk 0:03:00.7]} 8...
Ne8 {[%clk 0:03:00.3]} 9. Nh4 {[%clk 0:02:54.8]} 9... Ne7 {[%clk 0:02:59.4]} 10.
Bg2 {[%clk 0:02:52.9]} 10... f5 {[%clk 0:02:59.3]} 11. exf5 {[%clk 0:02:49.1]}
11... Nxf5 {[%clk 0:03:00]} 12. Nxf5 {[%clk 0:02:49.1]} 12... Rxf5 {[%clk
0:03:00.6]} 13. O-O {[%clk 0:02:44.3]} 13... Rf8 {[%clk 0:02:58.5]} 14. f4
{[%clk 0:02:43.4]} 14... Nf6 {[%clk 0:02:53.6]} 15. fxe5 {[%clk 0:02:14.5]}
15... dxe5 {[%clk 0:02:54.5]} 16. Qe2 {[%clk 0:02:12.6]} 16... Bg4 {[%clk
0:02:47.9]} 17. Qe3 {[%clk 0:01:28.3]} 17... c6 {[%clk 0:02:46.2]} 18. Rb1
{[%clk 0:01:14.5]} 18... Rb8 {[%clk 0:02:43.8]} 19. a4 {[%clk 0:01:04.1]} 19...
Qa5 {[%clk 0:02:41.2]} 20. Ba3 {[%clk 0:00:59.6]} 20... Rf7 {[%clk 0:02:29.1]}
21. Bb4 {[%clk 0:00:56.3]} 21... Qxa4 {[%clk 0:02:29.3]} 22. Qxe5 {[%clk
0:00:28.4]} 22... Re8 {[%clk 0:02:27.1]} 23. Qd4 {[%clk 0:00:22.9]} 23... Rd7
{[%clk 0:02:19.7]} 24. Qc5 {[%clk 0:00:09.8]} 24... Rxd3 {[%clk 0:02:13.4]} 25.
Qg5 {[%clk 0:00:04.2]} 25... h6 {[%clk 0:02:06.7]} 26. Qh4 {[%clk 0:00:03.2]}
26... Qc2 {[%clk 0:01:50.6]} 27. Rbc1 {[%clk 0:00:01.6]} 27... Qd2 {[%clk
0:01:51.1]} 0-1

[Event "*** Titled Tuesday Blitz"]
[Site "Chess.com"]
[Date "2021.04.20"]
[Round "6"]
[White "Vesper2018"]
[Black "Agoking701"]
[Result "1-0"]
[WhiteElo "2523"]
[BlackElo "2313"]
[TimeControl "180+1"]
[EndTime "11:03:54 PDT"]
[Termination "Vesper2018 won by resignation"]

1. e4 {[%clk 0:03:00.9]} 1... d6 {[%clk 0:02:58.4]} 2. d4 {[%clk 0:03:00.9]}
2... Nf6 {[%clk 0:02:59.3]} 3. Nc3 {[%clk 0:03:01.1]} 3... c6 {[%clk 0:02:59.6]}
4. f4 {[%clk 0:02:55.6]} 4... Qa5 {[%clk 0:02:58.8]} 5. Bd3 {[%clk 0:02:52.7]}
5... e5 {[%clk 0:02:57.2]} 6. Nf3 {[%clk 0:02:47.6]} 6... Nbd7 {[%clk
0:02:56.1]} 7. O-O {[%clk 0:02:45]} 7... exd4 {[%clk 0:02:51.7]} 8. Nxd4 {[%clk
0:02:44.9]} 8... g6 {[%clk 0:02:52.3]} 9. Be3 {[%clk 0:02:40.4]} 9... Bg7 {[%clk
0:02:52.3]} 10. Kh1 {[%clk 0:02:38.8]} 10... O-O {[%clk 0:02:52.5]} 11. Qd2
{[%clk 0:02:37.6]} 11... Re8 {[%clk 0:02:41.4]} 12. a3 {[%clk 0:02:31.2]} 12...
Ng4 {[%clk 0:01:59.1]} 13. Bg1 {[%clk 0:02:26.4]} 13... Qh5 {[%clk 0:01:36]} 14.
h3 {[%clk 0:02:21.4]} 14... Nc5 {[%clk 0:01:30.4]} 15. Rae1 {[%clk 0:02:07.6]}
15... Nf6 {[%clk 0:01:20.7]} 16. b4 {[%clk 0:01:46.1]} 16... Nxd3 {[%clk
0:00:34.5]} 17. cxd3 {[%clk 0:01:39.9]} 17... Bxh3 {[%clk 0:00:25]} 18. gxh3
{[%clk 0:01:35.8]} 18... Qxh3+ {[%clk 0:00:25.9]} 19. Qh2 {[%clk 0:01:30.4]}
19... Qxd3 {[%clk 0:00:24.2]} 20. Rf3 {[%clk 0:01:28.4]} 20... Qc4 {[%clk
0:00:19.6]} 21. Qe2 {[%clk 0:01:21.9]} 21... Nxe4 {[%clk 0:00:12.4]} 22. Qxc4
{[%clk 0:01:15]} 1-0

[Event "*** Titled Tuesday Blitz"]
[Site "Chess.com"]
[Date "2021.04.20"]
[Round "6"]
[White "Kolle05"]
[Black "Goryachkina"]
[Result "0-1"]
[WhiteElo "2334"]
[BlackElo "2637"]
[TimeControl "180+1"]
[EndTime "11:03:59 PDT"]
[Termination "Goryachkina won by resignation"]

1. e4 {[%clk 0:03:00.9]} 1... c5 {[%clk 0:02:59.7]} 2. Nf3 {[%clk 0:03:00.3]}
2... e6 {[%clk 0:02:59]} 3. d4 {[%clk 0:02:58.5]} 3... cxd4 {[%clk 0:02:58.9]}
4. Nxd4 {[%clk 0:02:59.4]} 4... a6 {[%clk 0:02:59.5]} 5. c4 {[%clk 0:02:59.1]}
5... Nf6 {[%clk 0:02:58.7]} 6. Nc3 {[%clk 0:02:59.3]} 6... Bb4 {[%clk
0:02:58.8]} 7. Qd3 {[%clk 0:02:59.4]} 7... d6 {[%clk 0:02:43.6]} 8. Be2 {[%clk
0:02:41.9]} 8... Nbd7 {[%clk 0:02:43]} 9. f3 {[%clk 0:02:40]} 9... Ne5 {[%clk
0:02:40.9]} 10. Qc2 {[%clk 0:02:29.4]} 10... O-O {[%clk 0:02:39.6]} 11. Be3
{[%clk 0:02:27]} 11... Qc7 {[%clk 0:02:38.3]} 12. a3 {[%clk 0:02:05.9]} 12...
Bc5 {[%clk 0:02:31.7]} 13. O-O {[%clk 0:01:29.6]} 13... Bd7 {[%clk 0:02:11.6]}
14. Rfd1 {[%clk 0:01:06.4]} 14... Rac8 {[%clk 0:02:10.1]} 15. Rac1 {[%clk
0:00:37.9]} 15... Qb8 {[%clk 0:01:58.8]} 16. b4 {[%clk 0:00:31.1]} 16... Ba7
{[%clk 0:01:58.2]} 17. Qb3 {[%clk 0:00:30.6]} 17... Rfd8 {[%clk 0:01:49.6]} 18.
Kf2 {[%clk 0:00:30.2]} 18... h6 {[%clk 0:01:43.8]} 19. Nc2 {[%clk 0:00:29.8]}
19... b5 {[%clk 0:01:32.3]} 20. cxb5 {[%clk 0:00:24.5]} 20... Neg4+ {[%clk
0:01:27.2]} 21. Kg3 {[%clk 0:00:03.2]} 21... Nxe3 {[%clk 0:01:25.5]} 22. Nxe3
{[%clk 0:00:04.1]} 22... Bxe3 {[%clk 0:01:25.2]} 23. Rc2 {[%clk 0:00:04.7]}
23... d5+ {[%clk 0:01:25.2]} 0-1

[Event "*** Titled Tuesday Blitz"]
[Site "Chess.com"]
[Date "2021.04.20"]
[Round "6"]
[White "Skat2704"]
[Black "Zkid"]
[Result "0-1"]
[WhiteElo "2668"]
[BlackElo "2834"]
[TimeControl "180+1"]
[EndTime "11:04:07 PDT"]
[Termination "Zkid won by resignation"]

1. d4 {[%clk 0:03:00.9]} 1... d5 {[%clk 0:02:59.8]} 2. Nf3 {[%clk 0:02:59.9]}
2... Nf6 {[%clk 0:02:59.5]} 3. c4 {[%clk 0:03:00.2]} 3... dxc4 {[%clk
0:03:00.4]} 4. e3 {[%clk 0:02:59.5]} 4... e6 {[%clk 0:03:00.7]} 5. Bxc4 {[%clk
0:02:59.8]} 5... c5 {[%clk 0:03:00.7]} 6. O-O {[%clk 0:02:59.8]} 6... a6 {[%clk
0:03:00.9]} 7. b3 {[%clk 0:02:58.6]} 7... cxd4 {[%clk 0:02:59.7]} 8. exd4 {[%clk
0:02:57.2]} 8... b5 {[%clk 0:02:58.5]} 9. Be2 {[%clk 0:02:57.3]} 9... Bb7 {[%clk
0:02:58.8]} 10. Bb2 {[%clk 0:02:56.5]} 10... Be7 {[%clk 0:02:59.1]} 11. a4
{[%clk 0:02:56.6]} 11... bxa4 {[%clk 0:02:56]} 12. Rxa4 {[%clk 0:02:55.4]} 12...
O-O {[%clk 0:02:55.9]} 13. Nbd2 {[%clk 0:02:54.1]} 13... Nbd7 {[%clk 0:02:53.9]}
14. Nc4 {[%clk 0:02:50.8]} 14... Nb6 {[%clk 0:02:51]} 15. Ra1 {[%clk 0:02:50.3]}
15... Nbd5 {[%clk 0:02:27.7]} 16. Na5 {[%clk 0:02:41.3]} 16... Qb6 {[%clk
0:02:23.6]} 17. Nxb7 {[%clk 0:02:36.5]} 17... Qxb7 {[%clk 0:02:23.7]} 18. Ne5
{[%clk 0:02:33.1]} 18... Rfb8 {[%clk 0:02:22.4]} 19. Bc4 {[%clk 0:02:26.8]}
19... a5 {[%clk 0:02:21.6]} 20. Re1 {[%clk 0:02:19.4]} 20... a4 {[%clk
0:02:18.6]} 21. Qe2 {[%clk 0:02:07.6]} 21... Nf4 {[%clk 0:02:08.7]} 22. Qf1
{[%clk 0:02:00.8]} 22... a3 {[%clk 0:02:01.5]} 23. Bc3 {[%clk 0:01:52.9]} 23...
N4d5 {[%clk 0:01:54]} 24. Bd2 {[%clk 0:01:47.8]} 24... Bb4 {[%clk 0:01:52.6]}
25. Bxb4 {[%clk 0:01:41.7]} 25... Nxb4 {[%clk 0:01:53.5]} 26. Nxf7 {[%clk
0:01:18.4]} 26... Kxf7 {[%clk 0:01:51.1]} 27. Bxe6+ {[%clk 0:01:18.1]} 27... Kf8
{[%clk 0:01:50.2]} 28. Qc4 {[%clk 0:01:05.6]} 28... Qc6 {[%clk 0:01:45.1]} 29.
Qe2 {[%clk 0:00:37.6]} 29... a2 {[%clk 0:01:35.1]} 30. Qe5 {[%clk 0:00:24.1]}
30... Nd3 {[%clk 0:01:26.1]} 0-1

[Event "*** Titled Tuesday Blitz"]
[Site "Chess.com"]
[Date "2021.04.20"]
[Round "6"]
[White "Chernobay_Artem"]
[Black "Vanina1989"]
[Result "0-1"]
[WhiteElo "2621"]
[BlackElo "2790"]
[TimeControl "180+1"]
[EndTime "11:04:07 PDT"]
[Termination "Vanina1989 won on time"]

1. d4 {[%clk 0:03:00.9]} 1... d5 {[%clk 0:02:59.3]} 2. c4 {[%clk 0:03:00.5]}
2... c6 {[%clk 0:02:59.5]} 3. Nf3 {[%clk 0:02:59.7]} 3... Nf6 {[%clk 0:02:59.8]}
4. Nc3 {[%clk 0:03:00.2]} 4... dxc4 {[%clk 0:02:59.4]} 5. a4 {[%clk 0:02:59.9]}
5... Bf5 {[%clk 0:02:59.1]} 6. e3 {[%clk 0:03:00.5]} 6... e6 {[%clk 0:02:58]} 7.
Bxc4 {[%clk 0:03:01.1]} 7... Bb4 {[%clk 0:02:58.2]} 8. O-O {[%clk 0:03:01.6]}
8... O-O {[%clk 0:02:58.5]} 9. Qe2 {[%clk 0:03:02.2]} 9... Bg6 {[%clk 0:02:55]}
10. Ne5 {[%clk 0:03:01.3]} 10... Nbd7 {[%clk 0:02:55.3]} 11. Nxg6 {[%clk
0:03:00.4]} 11... hxg6 {[%clk 0:02:55.7]} 12. Rd1 {[%clk 0:03:01.1]} 12... Qc7
{[%clk 0:02:52.6]} 13. e4 {[%clk 0:02:54.2]} 13... e5 {[%clk 0:02:52.5]} 14. d5
{[%clk 0:02:51.8]} 14... Nb6 {[%clk 0:02:50.5]} 15. Bb3 {[%clk 0:02:49.5]} 15...
a5 {[%clk 0:02:49.1]} 16. Bg5 {[%clk 0:02:39.9]} 16... Nfd7 {[%clk 0:02:44.8]}
17. Rac1 {[%clk 0:02:36]} 17... Nc5 {[%clk 0:02:43.2]} 18. Ba2 {[%clk
0:02:09.7]} 18... Qd7 {[%clk 0:02:16.7]} 19. dxc6 {[%clk 0:01:57.7]} 19... Qxc6
{[%clk 0:02:15.8]} 20. Nd5 {[%clk 0:01:53.2]} 20... Nxd5 {[%clk 0:02:14.6]} 21.
Bxd5 {[%clk 0:01:43.8]} 21... Qxa4 {[%clk 0:02:13]} 22. Be7 {[%clk 0:01:42.5]}
22... Rfc8 {[%clk 0:02:12.9]} 23. Qg4 {[%clk 0:00:46.3]} 23... Qe8 {[%clk
0:02:10.8]} 24. Bxc5 {[%clk 0:00:36.1]} 24... Rxc5 {[%clk 0:02:09.9]} 25. Rxc5
{[%clk 0:00:33.8]} 25... Bxc5 {[%clk 0:02:10]} 26. Qxg6 {[%clk 0:00:34.3]} 26...
Ra6 {[%clk 0:02:01.4]} 27. Qh5 {[%clk 0:00:17.9]} 27... Rf6 {[%clk 0:01:57.8]}
28. Kh1 {[%clk 0:00:07.2]} 28... Rxf2 {[%clk 0:01:48.7]} 29. Bxb7 {[%clk
0:00:07.3]} 29... Bd4 {[%clk 0:01:41]} 30. b3 {[%clk 0:00:06]} 30... Qb5 {[%clk
0:01:39]} 0-1